Cogmind - Beta 17 @@@ ROGUE MODE // 2026.08.05 @ 19:31:48 Player: Minty Result: Destroyed by 8P-YTN(M) with Battle Cannon Performance ------------- Evolutions (0) 0 Regions Visited (2) 400 Robots Destroyed (14) 70 Value Destroyed (402) 402 Prototype IDs (1) 20 Alien Tech Used (0) 0 Bonus (5900) 5900 TOTAL SCORE: 6792 Bonus ------- Prayed to X0-1V1 5000 Major X0-1V1 Interference 900 Cogmind --------- Core Integrity 0/200 Matter 59/150 Energy 719/900 System Corruption 10% Temperature Cool (0) Movement Walking (120) Location -10/Subcaves Parts ------- > --- POWER (1) -------- (None) > --- PROPULSION (2) --- Aluminum Leg Aluminum Leg > --- UTILITY (2) ------ Small Storage Unit Targeting Computer > --- WEAPON (5) ------- Improved Medium Laser > --- INVENTORY (8) ---- Wheel Machine Analyzer ECM Suite Peak State ------------ > --- POWER ------------ Light Nuclear Core > --- PROPULSION ------- Aluminum Leg Aluminum Leg > --- UTILITY ---------- Small Storage Unit Targeting Computer > --- WEAPON ----------- Medium Laser Particle Gun > --- INVENTORY -------- Light Ion Engine Light Treads Light Treads Aluminum Leg Wheel Wheel ECM Suite Grenade Launcher [Rating: 10] Favorites ----------- Power Light Ion Engine Engine Light Ion Engine Power Core Light Nuclear Core Propulsion Light Treads Treads Light Treads Leg Aluminum Leg Wheel Wheel Utility Small Storage Unit Device ECM Suite Storage Small Storage Unit Processor Targeting Computer Weapon Medium Laser Energy Gun Medium Laser Ballistic Gun Light Assault Rifle Launcher Grenade Launcher Build | -11 -10 -10 ------- Run | Yrd Mat Sub Slots Evolved . | . . . Power . | . . . Propulsion . | . . . Utility . | . . . Weapon . | . . . Parts Attached 14 | . 6 8 Power 2 | . 1 1 Engine 1 | . . 1 Core 1 | . 1 . Reactor . | . . . Propulsion 7 | . 1 6 Treads 2 | . . 2 Leg 2 | . 1 1 Wheel 3 | . . 3 Hover . | . . . Flight . | . . . Utility 2 | . 2 . Device 1 | . 1 . Storage . | . . . Processor 1 | . 1 . Hackware . | . . . Protection . | . . . Artifact . | . . . Weapon 3 | . 2 1 Energy Gun 2 | . 1 1 Energy Cannon . | . . . Ballistic Gun . | . . . Ballistic Cannon . | . . . Launcher 1 | . 1 . Special Weapon . | . . . Impact Weapon . | . . . Slashing Weapon . | . . . Piercing Weapon . | . . . Special Melee Weapon . | . . . Unidentified Prototypes . | . . . Parts Lost 10 | . 2 8 Power 3 | . 1 2 Propulsion 4 | . 1 3 Utility . | . . . Weapon 3 | . . 3 Highest Loss Streak 6 | . 1 6 To Critical Strikes . | . . . Average Backups 7 | . 7 7 Power . | . 1 . Propulsion 4 | . 4 4 Utility 1 | . . 1 Weapon . | . 1 . Tool/Special . | . . . Unused Backups 7 | . 6 1 Power 1 | . 1 . Propulsion 2 | . 2 . Utility 2 | . 1 1 Weapon 2 | . 2 . Tool/Special . | . . . Average Slot Usage (%) 94 | . 94 95 Engine 10 | . 10 11 Core 2 | . 3 1 Treads 16 | . . 24 Leg 9 | . 26 . Wheel 1 | . . 1 Storage 13 | . 14 13 Processor 12 | . 9 13 Energy Gun 22 | . 18 24 Ballistic Gun 2 | . 7 . Launcher 1 | . 1 1 Peak Build Rating 10 | . 10 10 Average Rating 8 | . 7 8 On Entrance 7 | 6 6 9 Avg Prop Armor Cover (%) . | . . . Naked Turns . | . . . Heaviest Build 16 | 11 16 16 Greatest Support 40 | 20 20 40 Greatest Overweight (x) 1 | . 1 . Average Overweight (x) . | . . . Largest Inventory Capacity 8 | . 8 8 Average Capacity 8 | . 8 8 Most Carried 8 | . 8 8 Average Carried 7 | . 7 7 Final Capacity 8 | 8 8 8 Final Carried 8 | 6 8 3 Class Distribution -------------------- 100% | Mutant Dominant Class ---------------- Mutant | -10/Materials Mutant | -10/Subcaves Resources | -11 -10 -10 ----------- Run | Yrd Mat Sub Matter Collected 441 | 184 139 118 Remotely . | . . . Salvage Created 416 | . 224 192 Parts 19 | . 7 12 Haulers Intercepted . | . . . Recyclers Shooed 2 | . 2 . Parts Field Recycled . | . . . Retrieved Matter . | . . . Parts Self-Destructed 12 | . . 12 Prevented . | . . . Parts Restored . | . . . Kills | -11 -10 -10 ------- Run | Yrd Mat Sub Combat Hostiles Destroyed 13 | . 5 8 Guns 7 | . 4 3 AOE 5 | . . 5 Classes Destroyed 5 | . 2 3 Tunneler 1 | . 1 . Swarmer 3 | . . 3 Grunt 8 | . 5 3 Artisan 1 | . . 1 Subdweller 2 | . . 2 Best Kill Streak 3 | . 1 3 Combat Bots Only 3 | . 2 3 Max Kills in Single Turn 3 | . 1 3 Gunslinging . | . . . Exploded 3 | . . 3 Melee . | . . . Uniques/NPCs Destroyed . | . . . Combat | -11 -10 -10 -------- Run | Yrd Mat Sub Hostile Shots Fired 96 | . 40 56 Missed 19 | . 7 12 Hits 77 | . 33 44 Projectile 77 | . 33 44 Critical Strikes 3 | . 2 1 Damage Taken 1321 | . 492 829 Core 325 | . 186 139 Absorbed by Shields . | . . . Core Remaining (%) 100 | 100 . . Volleys Fired 65 | . 26 39 Largest 2 | . 2 2 Hottest 115 | . 115 115 Shots Fired 101 | . 47 54 Gun 88 | . 43 45 Cannon . | . . . Launcher 13 | . 4 9 Special . | . . . Kinetic 12 | . 12 . Thermal 76 | . 31 45 Explosive 13 | . 4 9 Electromagnetic . | . . . Robot Hit Streak 18 | . 4 18 Robot Miss Streak 3 | . 2 3 Penetration Max . | . . . Secondary Targets . | . . . Shots Hit Robots 67 | . 27 40 Core Hits 29 | . 14 15 Critical Kills . | . . . Critical Parts Destroyed . | . . . Critical Strikes 4 | . 1 3 Burn 4 | . 1 3 Melee Attacks . | . . . Impact . | . . . Slashing . | . . . Piercing . | . . . Sneak Attacks . | . . . Combat Hostiles . | . . . Follow-up Attacks . | . . . Damage Inflicted 1329 | . 379 950 Guns 869 | . 314 555 Cannons . | . . . Explosions 460 | . 65 395 Melee . | . . . Ramming . | . . . Kinetic 80 | . 80 . Thermal 789 | . 234 555 Explosive 460 | . 65 395 Electromagnetic . | . . . Impact . | . . . Slashing . | . . . Piercing . | . . . Highest Corruption 10 | . . 10 Average Corruption 10 | . . 10 Corruption Purged . | . . . Corruption Blocked . | . . . Effects 3 | . . 3 Energy Discharges 1 | . . 1 Misfires 1 | . . 1 Weapon Failures 1 | . . 1 Overload Shots . | . . . Overflow Damage 25 | . 6 19 Projectiles . | . . . Explosions 25 | . 6 19 Melee . | . . . Knockbacks . | . . . Impact . | . . . Kinetic . | . . . Secondary . | . . . Self-Inflicted Damage 140 | . 62 78 Shots 5 | . 3 2 Rammed . | . . . Targets Rammed 1 | . 1 . Kicked 1 | . 1 . Crushed . | . . . Highest Temperature 676 | . 676 245 Average Temperature 203 | . 238 76 Received Heat Transfer 419 | . 255 164 Effects 13 | . 13 . Shutdowns 1 | . 1 . Energy Bleed 3 | . 3 . Interference 2 | . 2 . Matter Decay 3 | . 3 . Damage (minor) 3 | . 3 . Damage (core) 1 | . 1 . Siege Activations . | . . . Martial Activations . | . . . Shielding Activations . | . . . Robots Disrupted . | . . . Combat Hostiles . | . . . Robots Corrupted . | . . . Combat Hostiles . | . . . Parts Fried . | . . . Impact Corruptions . | . . . Robots Melted 1 | . 1 . Combat Hostiles 1 | . 1 . Parts Melted . | . . . Heat Transferred 2263 | . 740 1523 Parts Sabotaged . | . . . Parts Stolen . | . . . Parts Stripped . | . . . Power Chain Reactions . | . . . Alert | -11 -10 -10 ------- Run | Yrd Mat Sub Maximum Alert Level . | . . . Low Security (%) 100 | . 100 . Level 1 . | . . . Level 2 . | . . . Level 3 . | . . . Level 4 . | . . . Level 5 . | . . . High Security . | . . . Max Security . | . . . Peak Influence 66 | . 66 . Initial . | . . . Average 25 | . 25 . Influence Increases 261 | . 141 120 Destroy 0b10 Robot/C 220 | . 100 120 Destroy 0b10 Robot/NC 5 | . 5 . Destroy Leader 30 | . 30 . Successful Hack 6 | . 6 . Influence Decreases 261 | . 130 131 Entered New Map 6 | . . 6 Time Decay 181 | . 110 71 Lost Part 74 | . 20 54 Squads Dispatched 2 | . 2 . Investigation 1 | . 1 . Extermination . | . . . Reinforcement 1 | . 1 . Assault . | . . . Garrison . | . . . Intercept . | . . . Searches Triggered . | . . . Construction Impeded . | . . . Haulers Reinforced . | . . . Active Scanning Responses . | . . . Cargo Convoy Interrupts . | . . . Stealth | -11 -10 -10 --------- Run | Yrd Mat Sub Distress Signals 2 | . 2 . Communications Jammed . | . . . Distress Signals . | . . . Times Spotted 18 | . 9 9 Peak Tracking Total 4 | . 4 3 Tactical Retreats . | . . . Traps | -11 -10 -10 ------- Run | Yrd Mat Sub Traps Triggered . | . . . Indirectly . | . . . Trap Hack Attempts . | . . . Triggered . | . . . Disarmed . | . . . Reprogrammed . | . . . Reused . | . . . Traps Extracted . | . . . Installed . | . . . Triggered . | . . . Machines | -11 -10 -10 ---------- Run | Yrd Mat Sub Machines Disabled . | . . . Max in Single Turn . | . . . Machines Repaired . | . . . Machines Dismantled . | . . . Machines Sabotaged . | . . . Overloaded Fab Kills . | . . . Hacking | -11 -10 -10 --------- Run | Yrd Mat Sub Machines Accessed 1 | . 1 . Terminals 1 | . 1 . Fabricators . | . . . Repair Stations . | . . . Recycling Units . | . . . Scanalyzers . | . . . Garrison Access . | . . . Total Hacks 7 | . 7 . Successful 2 | . 2 . Failed 5 | . 5 . Catastrophic 2 | . 2 . Database Lockouts . | . . . Manual 6 | . 6 . Terminals 7 | . 7 . Fabricators . | . . . Repair Stations . | . . . Recycling Units . | . . . Scanalyzers . | . . . Garrison Access . | . . . Terminal Hacks 2 | . 2 . Locate Traps 1 | . 1 . Zone Layout 1 | . 1 . Fabricator Hacks . | . . . Repair Station Hacks . | . . . Recycling Unit Hacks . | . . . Scanalyzer . | . . . Garrison Access Hacks . | . . . Unauthorized Hacks . | . . . Terminals . | . . . Fabricators . | . . . Repair Stations . | . . . Recycling Units . | . . . Scanalyzers . | . . . Garrison Access . | . . . Data Cores Recovered . | . . . Used . | . . . Hacking Detections 1 | . 1 . Full Trace Events 1 | . 1 . Feedback Events . | . . . Feedback Blocked . | . . . Robot Schematics Acquired . | . . . Robots Built . | . . . Authchips . | . . . Time . | . . . Total Robot Build Rating . | . . . Part Schematics Acquired . | . . . Parts Built . | . . . Authchips . | . . . Time . | . . . Total Part Build Rating . | . . . Part Studies Acquired . | . . . Parts Repaired . | . . . Time . | . . . Parts Recycled . | . . . Recycled Matter . | . . . Retrieved Matter . | . . . Retrieved Components . | . . . Parts Scanalyzed . | . . . Part Schematics Acquired . | . . . Parts Damaged . | . . . Bothacking | -11 -10 -10 ------------ Run | Yrd Mat Sub Used RIF Installer . | . . . Robots Hacked . | . . . Non-combat . | . . . Combat . | . . . Robot Hacks Applied . | . . . Relay Couplers Released . | . . . Fabnet Peak Effective % . | . . . Robots Rewired . | . . . Allies Hacked . | . . . Hacks Repelled . | . . . Allies | -11 -10 -10 -------- Run | Yrd Mat Sub Total Allies . | . . . Largest Group . | . . . Highest-Rated Group . | . . . Highest-Rated Ally . | . . . Total Orders . | . . . Ally Attacks . | . . . Total Damage . | . . . Kills . | . . . Allies Corrupted . | . . . Allies Melted . | . . . X0-1V1 Amusement Gains 15 | . 10 5 Good Acts 10 | . . 10 Bad Acts 11 | . . 11 Intel | -11 -10 -10 ------- Run | Yrd Mat Sub Active Infowar (turns) 28 | . 28 . ECM 28 | . 28 . Robot Analysis Total . | . . . Derelict Logs Recovered . | . . . Drone Launches . | . . . Drone Recoveries . | . . . Exploration | -11 -10 -10 ------------- Run | Yrd Mat Sub Turns Passed 879 | . 285 594 Spaces Moved 428 | 1 151 276 Core . | . . . Treads 262 | . . 262 Legs 152 | 1 151 . Wheels 14 | . . 14 Hover . | . . . Flight . | . . . Fastest Speed 80 | 120 120 80 Average Speed 145 | 120 126 155 Slowest Speed 190 | 120 190 160 Overloaded Moves . | . . . Propulsion Burnouts . | . . . Robots Hopped . | . . . Potential Cave-ins . | . . . Cave-ins Triggered . | . . . Exploration Rate (%) 18 | 2 32 21 Regions Visited 2 Branch Regions 1 Pre-discovered Areas . | . . . Known Exits Taken . | . . . Unknown Exits Taken 2 | 1 1 . Scrap Searched . | . . . Spaces Dug . | . . . Terrain Destroyed 60 | . 6 54 Melee . | . . . Projectile . | . . . AOE 60 | . 6 54 Terrain Rammed . | . . . Walls Destroyed . | . . . Machines Disabled . | . . . Actions | -11 -10 -10 --------- Run | Yrd Mat Sub Total 581 | . 200 381 Wait 55 | . 11 44 Move 426 | . 150 276 Hop . | . . . Pick Up 4 | . 2 2 Fast Attach 4 | . 4 . Attach 8 | . . 8 Detach 2 | . 1 1 Swap 13 | . 2 11 Drop 3 | . 3 . Fire 65 | . 26 39 Melee . | . . . Ram . | . . . Kick 1 | . 1 . Crush . | . . . Escape Stasis . | . . . Rewire . | . . . Trap . | . . . Miscellaneous . | . . . Route ------- -11/Scrapyard -10/Materials (discovered 3 exits: [*Mat x2] / [*Sub]) -10/Subcaves (discovered 1 exit: [*Mat]) History --------- Turn | Location | Event 1 | -11/Scrapyard | Discovered new exit (range 0) 1 | -11/Scrapyard | Entered Materials 66 | -10/Materials | Discovered new exit (range 11) 188 | -10/Materials | Core integrity fell below 50% 236 | -10/Materials | Discovered new exit (range 11) 255 | -10/Materials | Discovered new exit (range 6) 273 | -10/Materials | Prayed at D.C.S.S. Altar Unit 286 | -10/Materials | Entered Subcaves 287 | -10/Subcaves | Approached by a straggling Scientist 305 | -10/Subcaves | A swath of the cavern ceiling suddenly collapsed 310 | -10/Subcaves | Build established: Mutant 321 | -10/Subcaves | X0-1V1 sent hostile G-34 Mercenary (x3) 468 | -10/Subcaves | Melee accuracy permanently improved by X0-1V1 (+5%; -50 max core) 633 | -10/Subcaves | Core integrity restored by X0-1V1 (+30) 762 | -10/Subcaves | Ambushed by angry Subdweller bent on revenge 808 | -10/Subcaves | X0-1V1 sent hostile S-10 Pest (x3) 820 | -10/Subcaves | Discovered new exit (range 3) 826 | -10/Subcaves | System corruption reached 10% 846 | -10/Subcaves | Core integrity fell below 20% 854 | -10/Subcaves | Core integrity restored by X0-1V1 (+40) 862 | -10/Subcaves | Weapon slot count temporarily expanded by X0-1V1 (+3) 880 | -10/Subcaves | Destroyed by 8P-YTN(M) with Battle Cannon Last Messages --------------- 00847_ System corrupted: Imp. Medium Laser failed to cycle. 00849_ X0-1V1 connects you with a stream of twisted latent energy (+9 energy generation). 00853_ Field strength at 81. 00853_ MM-65N(R) destroyed. 00854_ X0-1V1: "See? It buffs right out!" (+40 core integrity) 00857_ X0-1V1: "Did you know you're leaking matter?" (-150 matter capacity) 00857_ X0-1V1 uses Touch of Redecoration! Scrap shifts and assembles itself into 8P-YTN(M). 00861_ Lgt. Ion Engine destroyed. 00862_ X0-1V1: "Weapons, camera, action!" (+3 weapon slots) 00862_ Destroyed Flamer. 00865_ X0-1V1 is intrigued. 00866_ Knocked back. 00871_ System corrupted: Energy discharge (-243). 00871_ Wheel destroyed. 00873_ Wheel blasted off. 00873_ X0-1V1 is interested. 00880_ X0-1V1 snickers! Map ----- +----------------------------------------------------+ | ?????????????????????????????????????????? | | ?????????????????????????????????????????? | | ?????????????????????????????????????????? | | ?????????????????????????????????????????? | | ?????????????????????????????????????????? | | ?????????????????????????????????????????? | | ?????????????????????????????????????????? | | ???????????????????? ????????????????????? | | ??????????????????" ????????????????????? | | ??????????????????"" ????????????????????? | | ?????????????????? ""????????????????????? | | ?????????????????# "????????????????????? | | ????????????????? "????????????????????? | | ????????????????? #????????????????????? | | ????????????????? #????????????????????? | | ?????????????????# ##???????????????????? | | ????????????????? #???????????????????? | | ????????????????? ????????????????????? | | ????????##???????# #????????????????????? | | ????????# ######## #????????????????????? | | ????????# # #????????????????????? | | ????????#$& < ##???????????????????? | | ????????## %^!M "##??????????????????? | | ????????# < """#??????????????????? | | ????????# $ ## % %"##???????????????###? | | ????????####### =@ ##??####???????#### ## | | ??????????????## ####### ##???#### | | ???????????????##%# # ##### ### | | ????????????????# ## " ## # # | | ????????????????# [%" #" ## | | ????????????????### %["" * ##? | | ?????????????????# ## %="""!=& #? | | ?????????????????##?######""""" ### | | ?????????????????????????##""" # | | ??????????????????????????## "" ### | | ??????????????????????????# "##?## | | ??????????????????????????## #"???# | | ??????????????????????????# ???### ^ | | ????????????????????????? ?????# | | ????????????????????????## ? ????# | | ?????????????????????????## ? #????## | | ?????]????????????????????## ????????### | | ???????????????????????????? ??????????# | | ?????!?????????????????????? ??????????# | | ????????????????????????????????????????## | | ?????????????????????????????????????????# | | ?????????????????????????????????????????# | | ?????????????????????????????????????????? | | ?????????????????????????????????????????? | | ?????????????????????????????????????????? | +----------------------------------------------------+ Best States ------------- Heat Dissipation 25 Energy Generation 19 Energy Capacity 925 Matter Stores 300 Matter Capacity 300 Sight Range 18 Terrain Scan Density 10 ECM Strength 1 Evasion (%) 55 Targeting Accuracy 5 Recoil Reduction 2 Item Schematics ----------------- None Robot Schematics ------------------ None Fabricated ------------ Nothing Repaired ---------- Nothing Studied --------- None Alien Tech Used ----------------- None Achievements -------------- None Challenges ------------ None Game ------ Seed WeaponsSignalProcsplitter Manual? 0 Play Time 00:07:50 Cumulative 1353.1 hours Start 2026.08.05 @ 19:26:42 End 2026.08.05 @ 19:31:48 Sessions 1 Manual Loads 0 Difficulty Rogue Special Mode None Game No. 1658 Rogue 1374 Adventurer 124 Explorer 160 Win Type - Total 69 Types 54/0/9/4/1/0/0/1/0/0 Lore% 93 Gallery% 84 Achievement% 73 Wizard Run 0 Options --------- Layout 0 ASCII 0 Keyboard 1 Movement Numpad Keybinds 0 Fullscreen 2 Font 18/X11 Map View 76x50 Zoom Use 0% Tactical HUD 1 Map Filters NONE Filters NONE Steam 1 RUN: 4d1a91db-e1dc-4f6b-af97-225206425431